[Event "Titled Tuesday Blitz February 22 Late 2022"]
[White "Liu, Leonardo"]
[Black "Sliwicki, Damian"]
[WhiteFideId "30965780"]
[BlackFideId "1127128"]
[WhiteElo "2224"]
[BlackElo "2084"]
[Result "0-1"]
[Round "04"]
[TimeControl "180+1"]
[Date "2022.02.23"]
[WhiteClock "0:00:18"]
[BlackClock "0:00:09"]

1. e4 {[%clk 0:02:59]}  c5 {[%clk 0:02:33]} 2. Nc3 {[%clk 0:02:57]}  g6 {[%clk 0:02:33]} 3. g3 {[%clk 0:02:56]}  Bg7 {[%clk 0:02:32]} 4. Bg2 {[%clk 0:02:54]}  Nc6 {[%clk 0:02:31]} 5. d3 {[%clk 0:02:54]}  d6 {[%clk 0:02:25]} 6. Be3 {[%clk 0:02:53]}  Nf6 {[%clk 0:01:52]} 7. h3 {[%clk 0:02:52]}  O-O {[%clk 0:01:52]} 8. Nge2 {[%clk 0:02:51]}  e5 {[%clk 0:01:51]} 9. O-O {[%clk 0:02:51]}  b6 {[%clk 0:01:51]} 10. Qd2 {[%clk 0:02:51]}  Nd4 {[%clk 0:01:47]} 11. f4 {[%clk 0:02:50]}  Nh5 {[%clk 0:01:41]} 12. g4 {[%clk 0:02:48]}  Nxe2+ {[%clk 0:01:36]} 13. Nxe2 {[%clk 0:02:48]}  Nxf4 {[%clk 0:01:34]} 14. Nxf4 {[%clk 0:02:42]}  exf4 {[%clk 0:01:35]} 15. Bxf4 {[%clk 0:02:43]}  Bb7 {[%clk 0:01:15]} 16. c3 {[%clk 0:02:40]}  d5 {[%clk 0:01:12]} 17. e5 {[%clk 0:02:36]}  Qd7 {[%clk 0:01:04]} 18. Rae1 {[%clk 0:02:29]}  d4 {[%clk 0:01:03]} 19. c4 {[%clk 0:02:22]}  Bxg2 {[%clk 0:01:01]} 20. Qxg2 {[%clk 0:02:23]}  Rae8 {[%clk 0:00:59]} 21. Qd5 {[%clk 0:02:20]}  Qe7 {[%clk 0:00:53]} 22. Re2 {[%clk 0:02:01]}  Qh4 {[%clk 0:00:53]} 23. Qg2 {[%clk 0:01:59]}  Kh8 {[%clk 0:00:49]} 24. Bg3 {[%clk 0:01:59]}  Qg5 {[%clk 0:00:48]} 25. Rfe1 {[%clk 0:01:55]}  Re6 {[%clk 0:00:40]} 26. Qf2 {[%clk 0:01:50]}  Qe7 {[%clk 0:00:35]} 27. Bh4 {[%clk 0:01:46]}  Qc7 {[%clk 0:00:31]} 28. Bf6 {[%clk 0:01:35]}  Bxf6 {[%clk 0:00:22]} 29. exf6 {[%clk 0:01:36]}  Rfe8 {[%clk 0:00:12]} 30. Rxe6 {[%clk 0:01:31]}  fxe6 {[%clk 0:00:11]} 31. g5 {[%clk 0:01:27]}  Kg8 {[%clk 0:00:09]} 32. Qf3 {[%clk 0:01:22]}  Kf7 {[%clk 0:00:09]} 33. Re4 {[%clk 0:01:20]}  Qc6 {[%clk 0:00:08]} 34. Qg3 {[%clk 0:01:17]}  Qd7 {[%clk 0:00:05]} 35. Rh4 {[%clk 0:01:17]}  Kg8 {[%clk 0:00:05]} 36. Qe5 {[%clk 0:01:16]}  Qf7 {[%clk 0:00:04]} 37. Re4 {[%clk 0:01:11]}  Kf8 {[%clk 0:00:03]} 38. Qd6+ {[%clk 0:01:11]}  Kg8 {[%clk 0:00:04]} 39. a3 {[%clk 0:01:06]}  Kh8 {[%clk 0:00:03]} 40. b4 {[%clk 0:01:06]}  cxb4 {[%clk 0:00:02]} 41. axb4 {[%clk 0:01:07]}  h6 {[%clk 0:00:01]} 42. h4 {[%clk 0:01:07]}  hxg5 {[%clk 0:00:01]} 43. hxg5 {[%clk 0:01:08]}  Kg8 {[%clk 0:00:02]} 44. Rh4 {[%clk 0:01:01]}  e5 {[%clk 0:00:02]} 45. Re4 {[%clk 0:00:51]}  Qe6 {[%clk 0:00:02]} 46. Qc7 {[%clk 0:00:46]}  Qf5 {[%clk 0:00:02]} 47. Qxa7 {[%clk 0:00:36]}  Qxg5+ {[%clk 0:00:02]} 48. Kf2 {[%clk 0:00:33]}  Qxf6+ {[%clk 0:00:03]} 49. Ke2 {[%clk 0:00:34]}  Rf8 {[%clk 0:00:02]} 50. Kd1 {[%clk 0:00:28]}  Qf1+ {[%clk 0:00:03]} 51. Re1 {[%clk 0:00:21]}  Qxd3+ {[%clk 0:00:03]} 52. Kc1 {[%clk 0:00:21]}  Qc3+ {[%clk 0:00:04]} 53. Kd1 {[%clk 0:00:20]}  Qd3+ {[%clk 0:00:05]} 54. Kc1 {[%clk 0:00:21]}  Qxc4+ {[%clk 0:00:06]} 55. Kd1 {[%clk 0:00:21]}  Qd3+ {[%clk 0:00:06]} 56. Kc1 {[%clk 0:00:21]}  Qc3+ {[%clk 0:00:07]} 57. Kd1 {[%clk 0:00:22]}  Qd3+ {[%clk 0:00:07]} 58. Kc1 {[%clk 0:00:22]}  Qc4+ {[%clk 0:00:08]} 59. Kd1 {[%clk 0:00:22]}  Qb3+ {[%clk 0:00:09]} 60. Kc1 {[%clk 0:00:20]}  Rc8+ {[%clk 0:00:09]} 61. Kd2 {[%clk 0:00:18]}  Qc2# {[%clk 0:00:09]} 0-1


[Site "https://www.chess.com"]

[Event "Titled Tuesday Blitz February 22 Late 2022"]
[White "Maksimovic, Bojan"]
[Black "Myers, Dominique"]
[WhiteFideId "14408120"]
[BlackFideId "2041715"]
[WhiteElo "2450"]
[BlackElo "1986"]
[Result "1-0"]
[Round "04"]
[TimeControl "180+1"]
[Date "2022.02.23"]
[WhiteClock "0:00:20"]
[BlackClock "0:02:08"]

1. a3 {[%clk 0:03:00]}  e5 {[%clk 0:02:58]} 2. c4 {[%clk 0:03:00]}  Nc6 {[%clk 0:02:57]} 3. b4 {[%clk 0:02:59]}  a6 {[%clk 0:02:55]} 4. Bb2 {[%clk 0:02:59]}  d6 {[%clk 0:02:53]} 5. g3 {[%clk 0:02:54]}  g6 {[%clk 0:02:53]} 6. Bg2 {[%clk 0:02:54]}  Bg7 {[%clk 0:02:53]} 7. e3 {[%clk 0:02:52]}  Nge7 {[%clk 0:02:52]} 8. Ne2 {[%clk 0:02:52]}  O-O {[%clk 0:02:52]} 9. Nbc3 {[%clk 0:02:52]}  Be6 {[%clk 0:02:51]} 10. d3 {[%clk 0:02:52]}  f5 {[%clk 0:02:50]} 11. O-O {[%clk 0:02:50]}  Qd7 {[%clk 0:02:43]} 12. f4 {[%clk 0:02:49]}  Rae8 {[%clk 0:02:41]} 13. Nd5 {[%clk 0:02:48]}  h6 {[%clk 0:02:38]} 14. Qd2 {[%clk 0:02:47]}  g5 {[%clk 0:02:36]} 15. Rae1 {[%clk 0:02:44]}  Ng6 {[%clk 0:02:36]} 16. Nec3 {[%clk 0:02:37]}  Nd8 {[%clk 0:02:36]} 17. Ne2 {[%clk 0:01:23]}  Nf7 {[%clk 0:02:26]} 18. Kh1 {[%clk 0:00:49]}  Qd8 {[%clk 0:02:26]} 19. Ndc3 {[%clk 0:00:44]}  c6 {[%clk 0:02:26]} 20. e4 {[%clk 0:00:41]}  exf4 {[%clk 0:02:20]} 21. gxf4 {[%clk 0:00:40]}  fxe4 {[%clk 0:02:20]} 22. f5 {[%clk 0:00:39]}  exd3 {[%clk 0:02:18]} 23. fxe6 {[%clk 0:00:33]}  Nfe5 {[%clk 0:02:12]} 24. Nd4 {[%clk 0:00:22]}  Rxf1+ {[%clk 0:02:11]} 25. Rxf1 {[%clk 0:00:23]}  Nxc4 {[%clk 0:02:11]} 26. Qxd3 {[%clk 0:00:23]}  Nxb2 {[%clk 0:02:12]} 27. Qxg6 {[%clk 0:00:24]}  Qe7 {[%clk 0:02:11]} 28. Rf7 {[%clk 0:00:23]}  Qf8 {[%clk 0:02:07]} 29. Rxf8+ {[%clk 0:00:21]}  Rxf8 {[%clk 0:02:08]} 30. e7 {[%clk 0:00:20]} 1-0


[Site "https://www.chess.com"]

[Event "Titled Tuesday Blitz February 22 Late 2022"]
[White "Mogranzini, Roberto"]
[Black "Garriga Cazorla, Pere"]
[WhiteFideId "810894"]
[BlackFideId "32011601"]
[WhiteElo "2469"]
[BlackElo "2458"]
[Result "0-1"]
[Round "04"]
[TimeControl "180+1"]
[Date "2022.02.23"]
[WhiteClock "0:00:14"]
[BlackClock "0:01:30"]

1. e4 {[%clk 0:03:00]}  c5 {[%clk 0:02:59]} 2. Nf3 {[%clk 0:03:00]}  e6 {[%clk 0:02:58]} 3. g3 {[%clk 0:03:00]}  Nc6 {[%clk 0:02:56]} 4. Bg2 {[%clk 0:03:00]}  Nf6 {[%clk 0:02:57]} 5. Qe2 {[%clk 0:02:59]}  e5 {[%clk 0:02:56]} 6. O-O {[%clk 0:02:59]}  Be7 {[%clk 0:02:56]} 7. Na3 {[%clk 0:02:58]}  O-O {[%clk 0:02:56]} 8. Nc4 {[%clk 0:02:58]}  d6 {[%clk 0:02:55]} 9. d3 {[%clk 0:02:56]}  h6 {[%clk 0:02:56]} 10. c3 {[%clk 0:02:56]}  Be6 {[%clk 0:02:56]} 11. a4 {[%clk 0:02:54]}  Re8 {[%clk 0:02:56]} 12. Nh4 {[%clk 0:02:41]}  Bf8 {[%clk 0:02:53]} 13. Nf5 {[%clk 0:02:39]}  d5 {[%clk 0:02:49]} 14. Nce3 {[%clk 0:02:27]}  Qd7 {[%clk 0:02:24]} 15. Qf3 {[%clk 0:02:17]}  d4 {[%clk 0:02:12]} 16. Nc4 {[%clk 0:02:01]}  Nh7 {[%clk 0:02:11]} 17. Qe2 {[%clk 0:01:31]}  Rad8 {[%clk 0:02:09]} 18. Rd1 {[%clk 0:01:00]}  dxc3 {[%clk 0:02:05]} 19. bxc3 {[%clk 0:01:01]}  Bxc4 {[%clk 0:02:04]} 20. Bxh6 {[%clk 0:00:57]}  Be6 {[%clk 0:01:55]} 21. Be3 {[%clk 0:00:55]}  g6 {[%clk 0:01:50]} 22. Nh6+ {[%clk 0:00:53]}  Bxh6 {[%clk 0:01:50]} 23. Bxh6 {[%clk 0:00:54]}  b6 {[%clk 0:01:50]} 24. h4 {[%clk 0:00:52]}  f6 {[%clk 0:01:49]} 25. Bf3 {[%clk 0:00:51]}  Qf7 {[%clk 0:01:45]} 26. Kg2 {[%clk 0:00:51]}  Rd7 {[%clk 0:01:43]} 27. Be3 {[%clk 0:00:45]}  Red8 {[%clk 0:01:43]} 28. h5 {[%clk 0:00:41]}  g5 {[%clk 0:01:43]} 29. h6 {[%clk 0:00:41]}  Kh8 {[%clk 0:01:38]} 30. Bh5 {[%clk 0:00:38]}  Qe7 {[%clk 0:01:38]} 31. f4 {[%clk 0:00:37]}  gxf4 {[%clk 0:01:37]} 32. gxf4 {[%clk 0:00:37]}  Rg8+ {[%clk 0:01:36]} 33. Kh2 {[%clk 0:00:36]}  exf4 {[%clk 0:01:36]} 34. Bxf4 {[%clk 0:00:36]}  Ne5 {[%clk 0:01:37]} 35. d4 {[%clk 0:00:18]}  Bg4 {[%clk 0:01:30]} 36. Bxg4 {[%clk 0:00:15]}  Nxg4+ {[%clk 0:01:31]} 37. Kh3 {[%clk 0:00:15]}  Qe6 {[%clk 0:01:30]} 38. d5 {[%clk 0:00:15]}  Nf2+ {[%clk 0:01:29]} 39. Kh2 {[%clk 0:00:14]}  Qh3# {[%clk 0:01:30]} 0-1


[Site "https://www.chess.com"]

[Event "Titled Tuesday Blitz February 22 Late 2022"]
[White "Munoz, Francisco Javier"]
[Black "Hoffmann, Asa"]
[WhiteFideId "128368"]
[BlackFideId "2001470"]
[WhiteElo "2383"]
[BlackElo "2117"]
[Result "0-1"]
[Round "04"]
[TimeControl "180+1"]
[Date "2022.02.23"]
[WhiteClock "0:00:04"]
[BlackClock "0:01:03"]

1. e4 {[%clk 0:02:57]}  d6 {[%clk 0:02:59]} 2. d4 {[%clk 0:02:56]}  Nf6 {[%clk 0:02:58]} 3. Nc3 {[%clk 0:02:57]}  c6 {[%clk 0:02:58]} 4. Be3 {[%clk 0:02:57]}  Ng4 {[%clk 0:02:57]} 5. Bg5 {[%clk 0:02:56]}  Qb6 {[%clk 0:02:57]} 6. Qd2 {[%clk 0:02:56]}  Qxb2 {[%clk 0:02:51]} 7. Rb1 {[%clk 0:02:56]}  Qa3 {[%clk 0:02:51]} 8. f3 {[%clk 0:02:33]}  Nf6 {[%clk 0:02:50]} 9. Bc4 {[%clk 0:02:29]}  e6 {[%clk 0:02:41]} 10. Nge2 {[%clk 0:02:25]}  d5 {[%clk 0:02:41]} 11. Bd3 {[%clk 0:02:23]}  Be7 {[%clk 0:02:32]} 12. Rb3 {[%clk 0:02:12]}  Qa5 {[%clk 0:02:31]} 13. e5 {[%clk 0:02:11]}  Nfd7 {[%clk 0:02:30]} 14. Bxe7 {[%clk 0:02:11]}  Kxe7 {[%clk 0:02:30]} 15. O-O {[%clk 0:02:01]}  h6 {[%clk 0:02:29]} 16. f4 {[%clk 0:02:00]}  g6 {[%clk 0:02:28]} 17. g4 {[%clk 0:01:47]}  Qd8 {[%clk 0:02:26]} 18. f5 {[%clk 0:01:46]}  gxf5 {[%clk 0:02:22]} 19. gxf5 {[%clk 0:01:47]}  Qg8+ {[%clk 0:02:17]} 20. Kh1 {[%clk 0:01:45]}  Qg5 {[%clk 0:02:17]} 21. Qe1 {[%clk 0:01:19]}  exf5 {[%clk 0:02:04]} 22. Ng3 {[%clk 0:01:04]}  Nb6 {[%clk 0:02:01]} 23. Bxf5 {[%clk 0:00:58]}  Be6 {[%clk 0:01:52]} 24. a4 {[%clk 0:00:56]}  N8d7 {[%clk 0:01:45]} 25. a5 {[%clk 0:00:49]}  Nc4 {[%clk 0:01:45]} 26. Rxb7 {[%clk 0:00:49]}  Qd2 {[%clk 0:01:32]} 27. Bxe6 {[%clk 0:00:04]}  fxe6 {[%clk 0:01:25]} 28. Qxd2 {[%clk 0:00:05]}  Nxd2 {[%clk 0:01:25]} 29. Rf4 {[%clk 0:00:05]}  Rhb8 {[%clk 0:01:17]} 30. a6 {[%clk 0:00:05]}  Rxb7 {[%clk 0:01:15]} 31. axb7 {[%clk 0:00:06]}  Rb8 {[%clk 0:01:16]} 32. Rh4 {[%clk 0:00:06]}  Rxb7 {[%clk 0:01:15]} 33. Rxh6 {[%clk 0:00:06]}  Rb2 {[%clk 0:01:14]} 34. Rh7+ {[%clk 0:00:06]}  Kd8 {[%clk 0:01:14]} 35. Na4 {[%clk 0:00:05]}  Rb4 {[%clk 0:01:12]} 36. Nc5 {[%clk 0:00:05]}  Nxc5 {[%clk 0:01:11]} 37. dxc5 {[%clk 0:00:06]}  Rc4 {[%clk 0:01:08]} 38. h4 {[%clk 0:00:06]}  Nf3 {[%clk 0:01:05]} 39. h5 {[%clk 0:00:06]}  Rxc2 {[%clk 0:01:05]} 40. Rxa7 {[%clk 0:00:04]}  Rh2# {[%clk 0:01:03]} 0-1


[Site "https://www.chess.com"]

[Event "Titled Tuesday Blitz February 22 Late 2022"]
[White "Nasuta, Grzegorz"]
[Black "Bouget, Alexandre"]
[WhiteFideId "1141686"]
[BlackFideId "681318"]
[WhiteElo "2396"]
[BlackElo "2178"]
[Result "1-0"]
[Round "04"]
[TimeControl "180+1"]
[Date "2022.02.23"]
[WhiteClock "0:02:09"]
[BlackClock "0:01:37"]

1. e4 {[%clk 0:03:00]}  e5 {[%clk 0:02:57]} 2. Nf3 {[%clk 0:03:01]}  Nc6 {[%clk 0:02:58]} 3. d4 {[%clk 0:03:01]}  exd4 {[%clk 0:02:57]} 4. Nxd4 {[%clk 0:03:02]}  Nf6 {[%clk 0:02:57]} 5. Nxc6 {[%clk 0:03:01]}  bxc6 {[%clk 0:02:56]} 6. Nd2 {[%clk 0:02:59]}  d5 {[%clk 0:02:55]} 7. exd5 {[%clk 0:03:00]}  cxd5 {[%clk 0:02:56]} 8. Bb5+ {[%clk 0:03:00]}  Bd7 {[%clk 0:02:55]} 9. Bxd7+ {[%clk 0:03:01]}  Qxd7 {[%clk 0:02:55]} 10. O-O {[%clk 0:03:01]}  Be7 {[%clk 0:02:51]} 11. b3 {[%clk 0:03:01]}  O-O {[%clk 0:02:51]} 12. Bb2 {[%clk 0:03:02]}  c6 {[%clk 0:02:51]} 13. Re1 {[%clk 0:03:00]}  Bd8 {[%clk 0:02:40]} 14. Qf3 {[%clk 0:02:55]}  Ne8 {[%clk 0:02:05]} 15. Rad1 {[%clk 0:02:52]}  Bf6 {[%clk 0:02:03]} 16. Ba3 {[%clk 0:02:49]}  Nd6 {[%clk 0:02:01]} 17. c4 {[%clk 0:02:17]}  d4 {[%clk 0:01:57]} 18. Bxd6 {[%clk 0:02:16]}  Qxd6 {[%clk 0:01:56]} 19. Ne4 {[%clk 0:02:16]}  Qe5 {[%clk 0:01:50]} 20. Nxf6+ {[%clk 0:02:16]}  Qxf6 {[%clk 0:01:51]} 21. Qxf6 {[%clk 0:02:17]}  gxf6 {[%clk 0:01:52]} 22. Rxd4 {[%clk 0:02:17]}  Rfe8 {[%clk 0:01:51]} 23. Rxe8+ {[%clk 0:02:14]}  Rxe8 {[%clk 0:01:52]} 24. Kf1 {[%clk 0:02:15]}  Re6 {[%clk 0:01:44]} 25. Rd7 {[%clk 0:02:13]}  a6 {[%clk 0:01:43]} 26. Ra7 {[%clk 0:02:12]}  c5 {[%clk 0:01:43]} 27. Rc7 {[%clk 0:02:12]}  Rd6 {[%clk 0:01:37]} 28. Rxc5 {[%clk 0:02:09]}  Rd2 {[%clk 0:01:37]} 29. Ra5 {[%clk 0:02:09]} 1-0


[Site "https://www.chess.com"]

[Event "Titled Tuesday Blitz February 22 Late 2022"]
[White "Nikologorsky, Matfei"]
[Black "Aldokhin, Ivan"]
[WhiteFideId "24102474"]
[BlackFideId "24115720"]
[WhiteElo "2231"]
[BlackElo "2231"]
[Result "0-1"]
[Round "04"]
[TimeControl "180+1"]
[Date "2022.02.23"]
[WhiteClock "0:00:09"]
[BlackClock "0:00:09"]

1. e4 {[%clk 0:03:00]}  c5 {[%clk 0:03:00]} 2. Nf3 {[%clk 0:03:00]}  e6 {[%clk 0:03:01]} 3. d4 {[%clk 0:03:01]}  cxd4 {[%clk 0:03:02]} 4. Nxd4 {[%clk 0:03:01]}  a6 {[%clk 0:03:02]} 5. c4 {[%clk 0:02:59]}  Qc7 {[%clk 0:03:03]} 6. Bd3 {[%clk 0:02:56]}  Nf6 {[%clk 0:03:03]} 7. O-O {[%clk 0:02:55]}  d6 {[%clk 0:03:04]} 8. Nc3 {[%clk 0:02:52]}  Nbd7 {[%clk 0:03:04]} 9. Be3 {[%clk 0:02:48]}  Be7 {[%clk 0:03:03]} 10. Rc1 {[%clk 0:02:45]}  O-O {[%clk 0:03:02]} 11. Qe2 {[%clk 0:02:31]}  b6 {[%clk 0:03:02]} 12. Rfd1 {[%clk 0:02:28]}  Bb7 {[%clk 0:03:02]} 13. f3 {[%clk 0:02:25]}  Ne5 {[%clk 0:02:58]} 14. b4 {[%clk 0:02:03]}  Rac8 {[%clk 0:02:55]} 15. Na4 {[%clk 0:01:58]}  Nxd3 {[%clk 0:02:51]} 16. Qxd3 {[%clk 0:01:58]}  Nd7 {[%clk 0:02:52]} 17. Nb2 {[%clk 0:01:45]}  Qb8 {[%clk 0:02:43]} 18. a4 {[%clk 0:01:44]}  Rfe8 {[%clk 0:02:21]} 19. Nb3 {[%clk 0:01:44]}  Qa8 {[%clk 0:02:01]} 20. a5 {[%clk 0:01:43]}  Ne5 {[%clk 0:01:46]} 21. Qe2 {[%clk 0:01:41]}  d5 {[%clk 0:01:11]} 22. exd5 {[%clk 0:01:37]}  exd5 {[%clk 0:01:10]} 23. c5 {[%clk 0:01:37]}  d4 {[%clk 0:00:46]} 24. Bxd4 {[%clk 0:01:32]}  Bxf3 {[%clk 0:00:33]} 25. gxf3 {[%clk 0:01:26]}  Nxf3+ {[%clk 0:00:33]} 26. Kf1 {[%clk 0:01:13]}  Nxd4 {[%clk 0:00:31]} 27. Qg2 {[%clk 0:00:58]}  Qxg2+ {[%clk 0:00:21]} 28. Kxg2 {[%clk 0:00:58]}  Nxb3 {[%clk 0:00:20]} 29. Rc3 {[%clk 0:00:55]}  bxc5 {[%clk 0:00:13]} 30. Rxb3 {[%clk 0:00:55]}  cxb4 {[%clk 0:00:13]} 31. Na4 {[%clk 0:00:50]}  Bf8 {[%clk 0:00:11]} 32. Nb6 {[%clk 0:00:43]}  Rc2+ {[%clk 0:00:10]} 33. Kg3 {[%clk 0:00:43]}  h5 {[%clk 0:00:06]} 34. Rd5 {[%clk 0:00:36]}  g6 {[%clk 0:00:04]} 35. Nd7 {[%clk 0:00:36]}  Bg7 {[%clk 0:00:03]} 36. Rxb4 {[%clk 0:00:34]}  Re3+ {[%clk 0:00:03]} 37. Kh4 {[%clk 0:00:22]}  Rxh2+ {[%clk 0:00:03]} 38. Kg5 {[%clk 0:00:22]}  Rg3+ {[%clk 0:00:03]} 39. Kf4 {[%clk 0:00:22]}  Rhh3 {[%clk 0:00:04]} 40. Rb8+ {[%clk 0:00:14]}  Kh7 {[%clk 0:00:04]} 41. Nf8+ {[%clk 0:00:14]}  Kh6 {[%clk 0:00:03]} 42. Nxg6 {[%clk 0:00:08]}  Rg4+ {[%clk 0:00:03]} 43. Kf5 {[%clk 0:00:08]}  fxg6+ {[%clk 0:00:04]} 44. Ke6 {[%clk 0:00:08]}  Re3+ {[%clk 0:00:04]} 45. Kd6 {[%clk 0:00:09]}  Rge4 {[%clk 0:00:04]} 46. Kc6 {[%clk 0:00:09]}  Re6+ {[%clk 0:00:05]} 47. Kb7 {[%clk 0:00:08]}  Rb3+ {[%clk 0:00:05]} 48. Ka8 {[%clk 0:00:08]}  Rxb8+ {[%clk 0:00:05]} 49. Kxb8 {[%clk 0:00:09]}  Bc3 {[%clk 0:00:06]} 50. Ka7 {[%clk 0:00:09]}  Be1 {[%clk 0:00:06]} 51. Kb7 {[%clk 0:00:09]}  h4 {[%clk 0:00:07]} 52. Rd8 {[%clk 0:00:08]}  Kg5 {[%clk 0:00:06]} 53. Rh8 {[%clk 0:00:08]}  Kg4 {[%clk 0:00:06]} 54. Kc7 {[%clk 0:00:08]}  Kg3 {[%clk 0:00:06]} 55. Kd7 {[%clk 0:00:09]}  Re3 {[%clk 0:00:05]} 56. Rg8 {[%clk 0:00:08]}  h3 {[%clk 0:00:06]} 57. Rxg6+ {[%clk 0:00:09]}  Kf2 {[%clk 0:00:06]} 58. Rh6 {[%clk 0:00:09]}  Kg2 {[%clk 0:00:06]} 59. Kc6 {[%clk 0:00:09]}  Bg3 {[%clk 0:00:06]} 60. Kb6 {[%clk 0:00:09]}  h2 {[%clk 0:00:06]} 61. Kxa6 {[%clk 0:00:09]}  h1=Q {[%clk 0:00:06]} 62. Rxh1 {[%clk 0:00:09]}  Kxh1 {[%clk 0:00:07]} 63. Kb7 {[%clk 0:00:09]}  Rb3+ {[%clk 0:00:07]} 64. Kc6 {[%clk 0:00:09]}  Bf2 {[%clk 0:00:08]} 65. a6 {[%clk 0:00:09]}  Ra3 {[%clk 0:00:09]} 66. Kb7 {[%clk 0:00:10]}  Kg2 {[%clk 0:00:09]} 67. Kb8 {[%clk 0:00:09]}  Rxa6 {[%clk 0:00:09]} 0-1


[Site "https://www.chess.com"]

[Event "Titled Tuesday Blitz February 22 Late 2022"]
[White "Ozates, Tuna"]
[Black "Gledura, Benjamin"]
[WhiteFideId "6354521"]
[BlackFideId "712779"]
[WhiteElo "1872"]
[BlackElo "2326"]
[Result "0-1"]
[Round "04"]
[TimeControl "180+1"]
[Date "2022.02.23"]
[WhiteClock "0:00:02"]
[BlackClock "0:00:30"]

1. e4 {[%clk 0:03:00]}  Nf6 {[%clk 0:02:56]} 2. e5 {[%clk 0:03:00]}  Nd5 {[%clk 0:02:55]} 3. d4 {[%clk 0:03:01]}  d6 {[%clk 0:02:55]} 4. c4 {[%clk 0:03:01]}  Nb6 {[%clk 0:02:54]} 5. exd6 {[%clk 0:03:02]}  cxd6 {[%clk 0:02:54]} 6. Nc3 {[%clk 0:03:02]}  g6 {[%clk 0:02:53]} 7. Be3 {[%clk 0:03:02]}  Bg7 {[%clk 0:02:52]} 8. Rc1 {[%clk 0:03:03]}  O-O {[%clk 0:02:52]} 9. b3 {[%clk 0:03:04]}  Re8 {[%clk 0:02:52]} 10. c5 {[%clk 0:02:52]}  N6d7 {[%clk 0:02:45]} 11. Bc4 {[%clk 0:02:46]}  Nc6 {[%clk 0:02:34]} 12. Nf3 {[%clk 0:02:44]}  dxc5 {[%clk 0:02:25]} 13. dxc5 {[%clk 0:02:36]}  Qa5 {[%clk 0:02:25]} 14. Bd2 {[%clk 0:01:57]}  Qxc5 {[%clk 0:02:22]} 15. O-O {[%clk 0:01:56]}  Nb6 {[%clk 0:02:20]} 16. Be3 {[%clk 0:01:50]}  Qh5 {[%clk 0:02:14]} 17. Bxb6 {[%clk 0:01:34]}  axb6 {[%clk 0:02:15]} 18. Nd5 {[%clk 0:01:34]}  b5 {[%clk 0:02:03]} 19. Bxb5 {[%clk 0:01:21]}  Rd8 {[%clk 0:02:02]} 20. Bxc6 {[%clk 0:01:14]}  Kf8 {[%clk 0:01:51]} 21. Qe2 {[%clk 0:00:44]}  Rxd5 {[%clk 0:01:41]} 22. Bxd5 {[%clk 0:00:42]}  Qxd5 {[%clk 0:01:41]} 23. Rfd1 {[%clk 0:00:40]}  Qa5 {[%clk 0:01:37]} 24. Rc5 {[%clk 0:00:24]}  Qb6 {[%clk 0:01:26]} 25. Rdc1 {[%clk 0:00:22]}  Be6 {[%clk 0:01:21]} 26. Ng5 {[%clk 0:00:21]}  Bf5 {[%clk 0:01:12]} 27. Nxh7+ {[%clk 0:00:21]}  Kg8 {[%clk 0:01:11]} 28. Ng5 {[%clk 0:00:22]}  Bf6 {[%clk 0:01:10]} 29. Ne4 {[%clk 0:00:21]}  Bxe4 {[%clk 0:01:08]} 30. Qxe4 {[%clk 0:00:22]}  Rxa2 {[%clk 0:01:07]} 31. h3 {[%clk 0:00:17]}  Kg7 {[%clk 0:01:07]} 32. Qe3 {[%clk 0:00:16]}  Qd6 {[%clk 0:01:06]} 33. Rc8 {[%clk 0:00:10]}  Bd4 {[%clk 0:01:04]} 34. Qe4 {[%clk 0:00:05]}  Rxf2 {[%clk 0:00:57]} 35. Kh1 {[%clk 0:00:05]}  Qf6 {[%clk 0:00:40]} 36. Qxb7 {[%clk 0:00:05]}  Rf1+ {[%clk 0:00:29]} 37. Rxf1 {[%clk 0:00:03]}  Qxf1+ {[%clk 0:00:30]} 38. Kh2 {[%clk 0:00:04]}  Bg1+ {[%clk 0:00:29]} 39. Kg3 {[%clk 0:00:04]}  Qf2+ {[%clk 0:00:29]} 40. Kg4 {[%clk 0:00:04]}  f5+ {[%clk 0:00:29]} 41. Kg5 {[%clk 0:00:02]}  Qg3# {[%clk 0:00:30]} 0-1


[Site "https://www.chess.com"]